Workbook

Sheet الكارتة
B1: 1 | C1: 2 | D1: 3 | E1: 4 | F1: 5 | G1: 6 | H1: 7 | I1: 8 | J1: 9 | K1: 10 | L1: 11 | M1: 12 | N1: 13 | O1: 14 | P1: 15 | Q1: 16 | R1: 17 | S1: 18 | T1: 19 | U1: 20 | V1: 21 | W1: 22 | X1: 23 | Y1: 24 | Z1: 25 | AA1: 26 | AB1: 27 | AC1: 28 | AD1: 29 | AE1: 30 | AF1: 31 | AG1: 32 | AH1: 33 | AI1: 34 | AJ1: 35 | AK1: 36 | AL1: =$AL$6 -> 1 | AN1: 39 | AO1: 40 | AP1: 41 | AQ1: 42 | AR1: 43 | AS1: 44 | AT1: 45 | AU1: 46 | AV1: 47 | AW1: 48 | AX1: 49 | AY1: 50 | AZ1: 51 | BA1: 52 | BB1: 53 | BC1: 54 | BD1: 55 | BE1: 56 | BF1: 57 | BG1: 58 | BH1: 59 | BI1: 60 | BJ1: 61 | BK1: 62 | BL1: 63 | BM1: 64 | BN1: 65 | BO1: 66 | BP1: 67 | BQ1: 68 | BR1: 69 | BS1: 70 | BT1: 71 | BU1: 72 | BV1: 73 | BW1: 74
AT2: المطلوب طباعة مع إخفاء الصفوف الصفرية فى العمود A من( A33:A43)
AL6: 1
U9: رقم السجل/ | BG9: رقم السجل/
B11: بيان المرتبات وما فى حكمها عن المدة من | M11: =IFERROR(VLOOKUP($AL$1,'[1]حساب الضرائب'!$A$9:$GF$208,185,FALSE),"") -> 2020-01-01 | R11: =IFERROR(VLOOKUP($AL$1,'[1]حساب الضرائب'!$A$9:$GF$208,186,FALSE),"") -> حتى | T11: =IFERROR(VLOOKUP($AL$1,'[1]حساب الضرائب'!$A$9:$GF$208,187,FALSE),"") -> 2020-12-31 | AN11: بيان المرتبات وما فى حكمها عن المدة من | AY11: =IFERROR(VLOOKUP($AL$1,'[1]حساب الضرائب'!$A$9:$GF$208,185,FALSE),"") -> 2020-01-01 | BD11: =IFERROR(VLOOKUP($AL$1,'[1]حساب الضرائب'!$A$9:$GF$208,186,FALSE),"") -> حتى | BF11: =IFERROR(VLOOKUP($AL$1,'[1]حساب الضرائب'!$A$9:$GF$208,187,FALSE),"") -> 2020-12-31
B12: اسم صاحب البيان/ | U12: وظيفتة/ | X12: =IFERROR(VLOOKUP($AL$1,'[1]حساب الضرائب'!$A$9:$GF$208,4,FALSE),"") -> كبيرمعلمين | AF12: الدرجة/ | AI12: =IFERROR(VLOOKUP($AL$1,'[1]حساب الضرائب'!$A$9:$GF$208,6,FALSE),"") -> الاولى | AN12: اسم صاحب البيان/ | BG12: وظيفتة/ | BJ12: =IFERROR(VLOOKUP($AL$1,'[1]حساب الضرائب'!$A$9:$GZ$208,4,FALSE),"") -> كبيرمعلمين | BR12: الدرجة/ | BU12: =IFERROR(VLOOKUP($AL$1,'[1]حساب الضرائب'!$A$9:$GZ$208,6,FALSE),"") -> الاولى
B13: الأساسى المجرد/ | G13: =IFERROR(VLOOKUP($AL$1,'[1]حساب الضرائب'!$A$9:$GF$208,14,FALSE),"") -> 197 | I13: =IFERROR(VLOOKUP($AL$1,'[1]حساب الضرائب'!$A$9:$GF$208,167,FALSE),"") -> *6= | K13: =IFERROR(VLOOKUP($AL$1,'[1]حساب الضرائب'!$A$9:$GF$208,16,FALSE),"") -> 1182 | Z13: الاساسى الشامل/ | AE13: =IFERROR(VLOOKUP($AL$1,'[1]حساب الضرائب'!$A$9:$GZ$208,7,FALSE),"") -> 696.3 | AN13: الأساسى المجرد/ | AS13: =IFERROR(VLOOKUP($AL$1,'[1]حساب الضرائب'!$A$9:$GZ$208,67,FALSE),"") -> 197 | AU13: =IFERROR(VLOOKUP($AL$1,'[1]حساب الضرائب'!$A$9:$GZ$208,167,FALSE),"") -> *6= | AW13: =IFERROR(VLOOKUP($AL$1,'[1]حساب الضرائب'!$A$9:$GZ$208,69,FALSE),"") -> 1182 | BL13: الاساسى الشامل/ | BQ13: =IFERROR(VLOOKUP($AL$1,'[1]حساب الضرائب'!$A$9:$GZ$208,7,FALSE),"") -> 696.3
B15: بيان الدخل السنوى | M15: االمبلغ | T15: الاعفاءات والاستقطاعات | AN15: بيان الدخل السنوى | AY15: االمبلغ | BF15: الاعفاءات والاستقطاعات
M17: ق | P17: ج | AE17: ق | AH17: ج | AY17: ق | BB17: ج | BQ17: ق | BT17: ج
B18: المجرد | P18: =IFERROR(VLOOKUP($AL$1,'[1]حساب الضرائب'!$A$9:$GF$208,16,FALSE),"") -> 1182 | T18: معاشات 11% | AH18: =IFERROR(VLOOKUP($AL$1,'[1]حساب الضرائب'!$A$9:$GF$208,35,FALSE),"") -> 3035 | AN18: المجرد | BB18: =IFERROR(VLOOKUP($AL$1,'[1]حساب الضرائب'!$A$9:$GZ$208,69,FALSE),"") -> 1182 | BF18: معاشات 11% | BT18: =IFERROR(VLOOKUP($AL$1,'[1]حساب الضرائب'!$A$9:$GZ$208,88,FALSE),"") -> 3351
B20: مكافأت حوافزإضافى | P20: =IFERROR(VLOOKUP($AL$1,'[1]حساب الضرائب'!$A$9:$GF$208,62,FALSE),"") -> 26409 | AN20: مكافأت حوافزإضافى | BB20: =IFERROR(VLOOKUP($AL$1,'[1]حساب الضرائب'!$A$9:$GZ$208,106,FALSE),"") -> 1848
B22: جملة الدخل | P22: =IFERROR(VLOOKUP($AL$1,'[1]حساب الضرائب'!$A$9:$GF$208,32,FALSE),"") -> 27591 | T22: صندوق التكافل 16.25% | AH22: =IFERROR(VLOOKUP($AL$1,'[1]حساب الضرائب'!$A$9:$GF$208,36,FALSE),"") -> 918 | AN22: جملة الدخل | BB22: =IFERROR(VLOOKUP($AL$1,'[1]حساب الضرائب'!$A$9:$GZ$208,85,FALSE),"") -> 30468 | BF22: صندوق التكافل 16.25% | BT22: =IFERROR(VLOOKUP($AL$1,'[1]حساب الضرائب'!$A$9:$GZ$208,89,FALSE),"") -> 918
B24: الاعفاءات والاستقطاعات | P24: =IFERROR(VLOOKUP($AL$1,'[1]حساب الضرائب'!$A$9:$GF$208,43,FALSE),"") -> 4146 | T24: نقابة الازهر | AH24: =IFERROR(VLOOKUP($AL$1,'[1]حساب الضرائب'!$A$9:$GF$208,38,FALSE),"") -> 12 | AN24: الاعفاءات والاستقطاعات | BB24: =IFERROR(VLOOKUP($AL$1,'[1]حساب الضرائب'!$A$9:$GZ$208,94,FALSE),"") -> 4482 | BF24: نقابة الازهر | BT24: =IFERROR(VLOOKUP($AL$1,'[1]حساب الضرائب'!$A$9:$GZ$208,90,FALSE),"") -> 12
B26: الباقى | P26: =IFERROR(VLOOKUP($AL$1,'[1]حساب الضرائب'!$A$9:$GF$208,44,FALSE),"") -> 23445 | T26: الدمغات | AH26: =IFERROR(VLOOKUP($AL$1,'[1]حساب الضرائب'!$A$9:$GF$208,42,FALSE),"") -> 181 | AN26: الباقى | BB26: =IFERROR(VLOOKUP($AL$1,'[1]حساب الضرائب'!$A$9:$GZ$208,95,FALSE),"") -> 25986 | BF26: الدمغات | BT26: =IFERROR(VLOOKUP($AL$1,'[1]حساب الضرائب'!$A$9:$GZ$208,93,FALSE),"") -> 201
B28: الأعفاء الشخصى | P28: =IFERROR(VLOOKUP($AL$1,'[1]حساب الضرائب'!$A$9:$GF$208,177,FALSE),"") -> 7500 | AN28: الأعفاء الشخصى | BB28: =IFERROR(VLOOKUP($AL$1,'[1]حساب الضرائب'!$A$9:$GZ$208,178,FALSE),"") -> 12000
B30: الوعاء الضريبى | P30: =IFERROR(VLOOKUP($AL$1,'[1]حساب الضرائب'!$A$9:$GF$208,45,FALSE),"") -> 15945 | T30: جملة الاعفاءات والاستقطاعات | AH30: =IFERROR(VLOOKUP($AL$1,'[1]حساب الضرائب'!$A$9:$GF$208,43,FALSE),"") -> 4146 | AN30: الوعاء الضريبى | BB30: =IFERROR(VLOOKUP($AL$1,'[1]حساب الضرائب'!$A$9:$GZ$208,96,FALSE),"") -> 13986 | BF30: جملة الاعفاءات والاستقطاعات | BT30: =IFERROR(VLOOKUP($AL$1,'[1]حساب الضرائب'!$A$9:$GZ$208,94,FALSE),"") -> 4482
A33: =$K$33 -> 0 | E33: =IFERROR(VLOOKUP($AL$1,'[1]حساب الضرائب'!$A$9:$GF$208,46,FALSE),"") -> 0 | H33: =IFERROR(VLOOKUP($AL$1,'[1]حساب الضرائب'!$A$9:$GF$208,168,FALSE),"") -> ×1.5%= | K33: =IFERROR(VLOOKUP($AL$1,'[1]حساب الضرائب'!$A$9:$GF$208,47,FALSE),"") -> 0
A34: =$AU$34 -> 187 | AO34: =IFERROR(VLOOKUP($AL$1,'[1]حساب الضرائب'!$A$9:$GZ$208,97,FALSE),"") -> 7500 | AR34: =IFERROR(VLOOKUP($AL$1,'[1]حساب الضرائب'!$A$9:$GZ$208,169,FALSE),"") -> ×2.5%= | AU34: =IFERROR(VLOOKUP($AL$1,'[1]حساب الضرائب'!$A$9:$GZ$208,98,FALSE),"") -> 187
A35: =$K$35 -> 1100 | E35: =IFERROR(VLOOKUP($AL$1,'[1]حساب الضرائب'!$A$9:$GF$208,48,FALSE),"") -> 11000 | H35: =IFERROR(VLOOKUP($AL$1,'[1]حساب الضرائب'!$A$9:$GF$208,170,FALSE),"") -> ×10%= | K35: =IFERROR(VLOOKUP($AL$1,'[1]حساب الضرائب'!$A$9:$GF$208,50,FALSE),"") -> 1100
A36: =$AU$36 -> 648 | AO36: =IFERROR(VLOOKUP($AL$1,'[1]حساب الضرائب'!$A$9:$GZ$208,99,FALSE),"") -> 6486 | AR36: =IFERROR(VLOOKUP($AL$1,'[1]حساب الضرائب'!$A$9:$GZ$208,170,FALSE),"") -> ×10%= | AU36: =IFERROR(VLOOKUP($AL$1,'[1]حساب الضرائب'!$A$9:$GZ$208,100,FALSE),"") -> 648
A37: =$K$35 -> 1100 | E37: =IFERROR(VLOOKUP($AL$1,'[1]حساب الضرائب'!$A$9:$GF$208,52,FALSE),"") -> 4945 | H37: =IFERROR(VLOOKUP($AL$1,'[1]حساب الضرائب'!$A$9:$GF$208,171,FALSE),"") -> ×15%= | K37: =IFERROR(VLOOKUP($AL$1,'[1]حساب الضرائب'!$A$9:$GF$208,53,FALSE),"") -> 742
A38: =$AU$38 -> 0 | AO38: =IFERROR(VLOOKUP($AL$1,'[1]حساب الضرائب'!$A$9:$GZ$208,101,FALSE),"") -> 0 | AR38: =IFERROR(VLOOKUP($AL$1,'[1]حساب الضرائب'!$A$9:$GZ$208,171,FALSE),"") -> ×15%= | AU38: =IFERROR(VLOOKUP($AL$1,'[1]حساب الضرائب'!$A$9:$GZ$208,102,FALSE),"") -> 0
A39: =$K$35 -> 1100 | J39: =IFERROR(VLOOKUP($AL$1,'[1]حساب الضرائب'!$A$9:$GF$208,173,FALSE),"") -> = | K39: =IFERROR(VLOOKUP($AL$1,'[1]حساب الضرائب'!$A$9:$GF$208,54,FALSE),"") -> 1842 | N39: =IFERROR(VLOOKUP($AL$1,'[1]حساب الضرائب'!$A$9:$GF$208,175,FALSE),"") -> × 55% = | Q39: =IFERROR(VLOOKUP($AL$1,'[1]حساب الضرائب'!$A$9:$GF$208,55,FALSE),"") -> 1013
A40: =$AU$40 -> 835 | AO40: =IFERROR(VLOOKUP($AL$1,'[1]حساب الضرائب'!$A$9:$GZ$208,165,FALSE),"") -> الضريبة المستحقة | AT40: =IFERROR(VLOOKUP($AL$1,'[1]حساب الضرائب'!$A$9:$GZ$208,173,FALSE),"") -> = | AU40: =IFERROR(VLOOKUP($AL$1,'[1]حساب الضرائب'!$A$9:$GZ$208,105,FALSE),"") -> 835
A41: =$K$41 -> 0 | E41: =IFERROR(VLOOKUP($AL$1,'[1]حساب الضرائب'!$A$9:$GF$208,56,FALSE),"") -> 0 | H41: =IFERROR(VLOOKUP($AL$1,'[1]حساب الضرائب'!$A$9:$GF$208,172,FALSE),"") -> ×20%= | K41: =IFERROR(VLOOKUP($AL$1,'[1]حساب الضرائب'!$A$9:$GF$208,57,FALSE),"") -> 0
A42: =$BG$42 -> 1848 | AO42: =IFERROR(VLOOKUP($AL$1,'[1]حساب الضرائب'!$A$9:$GZ$208,166,FALSE),"") -> الضريبة المستحقة عن السنة كلها | AX42: =IFERROR(VLOOKUP($AL$1,'[1]حساب الضرائب'!$A$9:$GZ$208,173,FALSE),"") -> = | AY42: =IFERROR(VLOOKUP($AL$1,'[1]حساب الضرائب'!$A$9:$GZ$208,105,FALSE),"") -> 835 | BB42: =IFERROR(VLOOKUP($AL$1,'[1]حساب الضرائب'!$A$9:$GZ$208,174,FALSE),"") -> + | BC42: =IFERROR(VLOOKUP($AL$1,'[1]حساب الضرائب'!$A$9:$GZ$208,60,FALSE),"") -> 1013 | BF42: =IFERROR(VLOOKUP($AL$1,'[1]حساب الضرائب'!$A$9:$GZ$208,173,FALSE),"") -> = | BG42: =IFERROR(VLOOKUP($AL$1,'[1]حساب الضرائب'!$A$9:$GZ$208,106,FALSE),"") -> 1848
A43: =$K$41 -> 0 | J43: =IFERROR(VLOOKUP($AL$1,'[1]حساب الضرائب'!$A$9:$GF$208,173,FALSE),"") -> = | K43: =IFERROR(VLOOKUP($AL$1,'[1]حساب الضرائب'!$A$9:$GF$208,58,FALSE),"") -> 1842 | N43: =IFERROR(VLOOKUP($AL$1,'[1]حساب الضرائب'!$A$9:$GF$208,176,FALSE),"") -> × 92.5% = | R43: =IFERROR(VLOOKUP($AL$1,'[1]حساب الضرائب'!$A$9:$GF$208,59,FALSE),"") -> 1704
K44: الماهيات | BQ44: المديرالعام
